Cogmind - Beta 16.1 @@@ ROGUE MODE // 2026.06.21 @ 08:42:30 Player: Godsword Result: Destroyed by H-66 Slayer with Gauss Rifle Performance ------------- Evolutions (5) 2500 Regions Visited (7) 1400 Robots Destroyed (0) 0 Value Destroyed (0) 0 Prototype IDs (0) 0 Alien Tech Used (0) 0 Bonus (2187) 2187 TOTAL SCORE: 6087 Bonus ------- Pacifist 1987 Entered Garrisons 200 Cogmind --------- Core Integrity 0/1000 Matter 300/300 Energy 99/100 System Corruption 2% Temperature Cool (0) Movement Core (50) Location -5/Garrison Parts ------- > --- POWER (11) ------- (None) > --- PROPULSION (2) --- (None) > --- UTILITY (2) ------ (None) > --- WEAPON (2) ------- (None) > --- INVENTORY (5) ---- (None) Peak State ------------ None Favorites ----------- Power None Propulsion None Utility None Weapon None Build | -11 -10 -9 -8 -7 -6 -5 -5 ------- Run | Yrd Mat Mat Mat Fac Fac Fac Gar Slots Evolved 10 | . . 2 2 2 2 2 . Power 10 | . . 2 2 2 2 2 . Propulsion . | . . . . . . . . Utility . | . . . . . . . . Weapon . | . . . . . . . . Parts Attached . | . . . . . . . . Power . | . . . . . . . . Engine . | . . . . . . . . Core . | . . . . . . . . Reactor . | . . . . . . . . Propulsion . | . . . . . . . . Treads . | . . . . . . . . Leg . | . . . . . . . . Wheel . | . . . . . . . . Hover . | . . . . . . . . Flight . | . . . . . . . . Utility . | . . . . . . . . Device . | . . . . . . . . Storage . | . . . . . . . . Processor . | . . . . . . . . Hackware . | . . . . . . . . Protection . | . . . . . . . . Artifact . | . . . . . . . . Weapon . | . . . . . . . . Energy Gun . | . . . . . . . . Energy Cannon . | . . . . . . . . Ballistic Gun . | . . . . . . . . Ballistic Cannon . | . . . . . . . . Launcher . | . . . . . . . . Special Weapon . | . . . . . . . . Impact Weapon . | . . . . . . . . Slashing Weapon . | . . . . . . . . Piercing Weapon . | . . . . . . . . Special Melee Weapon . | . . . . . . . . Unidentified Prototypes . | . . . . . . . . Parts Lost . | . . . . . . . . Power . | . . . . . . . . Propulsion . | . . . . . . . . Utility . | . . . . . . . . Weapon . | . . . . . . . . Highest Loss Streak . | . . . . . . . . To Critical Strikes . | . . . . . . . . Average Backups . | . . . . . . . . Power . | . . . . . . . . Propulsion . | . . . . . . . . Utility . | . . . . . . . . Weapon . | . . . . . . . . Tool/Special . | . . . . . . . . Unused Backups . | . . . . . . . . Power . | . . . . . . . . Propulsion . | . . . . . . . . Utility . | . . . . . . . . Weapon . | . . . . . . . . Tool/Special . | . . . . . . . . Average Slot Usage (%) . | . . . . . . . . Peak Build Rating . | . . . . . . . . Average Rating . | . . . . . . . . On Entrance . | . . . . . . . . Avg Prop Armor Cover (%) . | . . . . . . . . Naked Turns 902 | . 58 57 134 389 124 81 59 Heaviest Build . | . . . . . . . . Greatest Support 3 | 3 3 3 3 3 3 3 3 Greatest Overweight (x) . | . . . . . . . . Average Overweight (x) . | . . . . . . . . Largest Inventory Capacity 5 | 5 5 5 5 5 5 5 5 Average Capacity 5 | 5 5 5 5 5 5 5 5 Most Carried . | . . . . . . . . Average Carried . | . . . . . . . . Final Capacity 5 | 5 5 5 5 5 5 5 5 Final Carried . | . . . . . . . . Class Distribution -------------------- 100% | Mutant Dominant Class ---------------- Mutant | -10/Materials Mutant | -9/Materials Mutant | -8/Materials Mutant | -7/Factory Mutant | -6/Factory Mutant | -5/Factory Mutant | -5/Garrison Resources | -11 -10 -9 -8 -7 -6 -5 -5 ----------- Run | Yrd Mat Mat Mat Fac Fac Fac Gar Matter Collected 200 | 200 . . . . . . . Remotely . | . . . . . . . . Salvage Created . | . . . . . . . . Parts . | . . . . . . . . Haulers Intercepted . | . . . . . . . . Recyclers Shooed . | . . . . . . . . Parts Field Recycled . | . . . . . . . . Retrieved Matter . | . . . . . . . . Parts Self-Destructed . | . . . . . . . . Prevented . | . . . . . . . . Parts Restored . | . . . . . . . . Kills | -11 -10 -9 -8 -7 -6 -5 -5 ------- Run | Yrd Mat Mat Mat Fac Fac Fac Gar Combat Hostiles Destroyed . | . . . . . . . . Classes Destroyed . | . . . . . . . . Best Kill Streak . | . . . . . . . . Combat Bots Only . | . . . . . . . . Max Kills in Single Turn . | . . . . . . . . Gunslinging . | . . . . . . . . Exploded . | . . . . . . . . Melee . | . . . . . . . . Uniques/NPCs Destroyed . | . . . . . . . . Combat | -11 -10 -9 -8 -7 -6 -5 -5 -------- Run | Yrd Mat Mat Mat Fac Fac Fac Gar Hostile Shots Fired 189 | . 13 23 55 34 . 19 45 Missed 74 | . 9 5 24 16 . 8 12 Hits 115 | . 4 18 31 18 . 11 33 Melee 23 | . . . . . . . 23 Projectile 92 | . 4 18 31 18 . 11 10 AOE 2 | . . . . . . . 2 Critical Strikes 10 | . . 1 3 . . . 6 Damage Taken 2024 | . 44 239 538 187 . 268 748 Core 2024 | . 44 239 538 187 . 268 748 Absorbed by Shields 44 | . . . . . . . 44 Core Remaining (%) 66 | 100 82 40 2 73 100 . . Volleys Fired . | . . . . . . . . Largest . | . . . . . . . . Hottest . | . . . . . . . . Shots Fired . | . . . . . . . . Gun . | . . . . . . . . Cannon . | . . . . . . . . Launcher . | . . . . . . . . Special . | . . . . . . . . Kinetic . | . . . . . . . . Thermal . | . . . . . . . . Explosive . | . . . . . . . . Electromagnetic . | . . . . . . . . Robot Hit Streak . | . . . . . . . . Robot Miss Streak . | . . . . . . . . Penetration Max . | . . . . . . . . Secondary Targets . | . . . . . . . . Shots Hit Robots . | . . . . . . . . Core Hits 4 | . . . . . . 1 3 Critical Kills . | . . . . . . . . Critical Parts Destroyed . | . . . . . . . . Critical Strikes . | . . . . . . . . Melee Attacks . | . . . . . . . . Impact . | . . . . . . . . Slashing . | . . . . . . . . Piercing . | . . . . . . . . Sneak Attacks . | . . . . . . . . Combat Hostiles . | . . . . . . . . Follow-up Attacks . | . . . . . . . . Damage Inflicted 90 | . . 15 . . . 39 36 Guns . | . . . . . . . . Cannons . | . . . . . . . . Explosions . | . . . . . . . . Melee . | . . . . . . . . Ramming 90 | . . 15 . . . 39 36 Kinetic . | . . . . . . . . Thermal . | . . . . . . . . Explosive . | . . . . . . . . Electromagnetic . | . . . . . . . . Impact . | . . . . . . . . Slashing . | . . . . . . . . Piercing . | . . . . . . . . Highest Corruption 2 | . . . . 2 . 2 2 Average Corruption 1 | . . . . 1 . 2 2 Corruption Purged . | . . . . . . . . Corruption Blocked . | . . . . . . . . Effects 7 | . . . . 4 . . 3 Message Errors 2 | . . . . 1 . . 1 Matter Fused 1 | . . . . 1 . . . Heat Flow Errors 1 | . . . . 1 . . . Energy Discharges 1 | . . . . . . . 1 Data Loss (minor) 2 | . . . . 1 . . 1 Overload Shots . | . . . . . . . . Overflow Damage . | . . . . . . . . Projectiles . | . . . . . . . . Explosions . | . . . . . . . . Melee . | . . . . . . . . Knockbacks . | . . . . . . . . Impact . | . . . . . . . . Kinetic . | . . . . . . . . Secondary . | . . . . . . . . Self-Inflicted Damage 41 | . . 7 . . . 18 16 Shots . | . . . . . . . . Rammed 24 | . . 2 . . . 11 11 Targets Rammed 24 | . . 2 . . . 11 11 Kicked . | . . . . . . . . Crushed . | . . . . . . . . Highest Temperature 245 | . . . 5 245 . . . Average Temperature 112 | . . . 5 126 . . . Received Heat Transfer 495 | . 24 120 198 63 . 72 18 Siege Activations . | . . . . . . . . Martial Activations . | . . . . . . . . Shielding Activations . | . . . . . . . . Robots Disrupted . | . . . . . . . . Combat Hostiles . | . . . . . . . . Robots Corrupted . | . . . . . . . . Combat Hostiles . | . . . . . . . . Parts Fried . | . . . . . . . . Impact Corruptions . | . . . . . . . . Robots Melted . | . . . . . . . . Combat Hostiles . | . . . . . . . . Parts Melted . | . . . . . . . . Heat Transferred . | . . . . . . . . Parts Sabotaged . | . . . . . . . . Parts Stolen . | . . . . . . . . Parts Stripped . | . . . . . . . . Power Chain Reactions . | . . . . . . . . Alert | -11 -10 -9 -8 -7 -6 -5 -5 ------- Run | Yrd Mat Mat Mat Fac Fac Fac Gar Maximum Alert Level . | . . . . . . . . Low Security (%) 100 | 100 100 100 100 100 100 100 100 Level 1 . | . . . . . . . . Level 2 . | . . . . . . . . Level 3 . | . . . . . . . . Level 4 . | . . . . . . . . Level 5 . | . . . . . . . . High Security . | . . . . . . . . Max Security . | . . . . . . . . Peak Influence 80 | . 30 22 80 36 . 15 13 Initial 36 | . . 12 9 36 . . 13 Average 9 | . 5 14 29 6 . 1 13 Influence Increases 284 | . 30 30 120 60 . 44 . Successful Hack 29 | . . . . 15 . 14 . Partial Spotted 30 | . . 15 . . . 15 . Lose Combat Pursuer 225 | . 30 15 120 45 . 15 . Influence Decreases 271 | . . 38 62 140 . 25 6 Entered New Map 81 | . . 18 13 44 . . 6 Time Decay 190 | . . 20 49 96 . 25 . Squads Dispatched 9 | . 1 2 2 3 . 1 . Investigation 3 | . . 1 . 1 . 1 . Extermination 1 | . . . . 1 . . . Reinforcement 5 | . 1 1 2 1 . . . Assault . | . . . . . . . . Garrison . | . . . . . . . . Intercept . | . . . . . . . . Searches Triggered . | . . . . . . . . Construction Impeded . | . . . . . . . . Haulers Reinforced . | . . . . . . . . Active Scanning Responses . | . . . . . . . . Cargo Convoy Interrupts . | . . . . . . . . Stealth | -11 -10 -9 -8 -7 -6 -5 -5 --------- Run | Yrd Mat Mat Mat Fac Fac Fac Gar Distress Signals 2 | . . . 1 1 . . . Communications Jammed . | . . . . . . . . Distress Signals . | . . . . . . . . Times Spotted 58 | . 5 12 19 8 1 6 7 Peak Tracking Total 11 | . 3 11 10 4 1 6 7 Tactical Retreats 9 | . 1 1 3 3 . 1 . Traps | -11 -10 -9 -8 -7 -6 -5 -5 ------- Run | Yrd Mat Mat Mat Fac Fac Fac Gar Traps Triggered 8 | . . 1 1 3 1 1 1 Indirectly . | . . . . . . . . Trap Hack Attempts . | . . . . . . . . Triggered . | . . . . . . . . Disarmed . | . . . . . . . . Reprogrammed . | . . . . . . . . Reused . | . . . . . . . . Traps Extracted . | . . . . . . . . Installed . | . . . . . . . . Triggered . | . . . . . . . . Machines | -11 -10 -9 -8 -7 -6 -5 -5 ---------- Run | Yrd Mat Mat Mat Fac Fac Fac Gar Machines Disabled . | . . . . . . . . Max in Single Turn . | . . . . . . . . Machines Repaired . | . . . . . . . . Machines Dismantled . | . . . . . . . . Machines Sabotaged . | . . . . . . . . Overloaded Fab Kills . | . . . . . . . . Hacking | -11 -10 -9 -8 -7 -6 -5 -5 --------- Run | Yrd Mat Mat Mat Fac Fac Fac Gar Machines Accessed 16 | . 1 . . 6 4 5 . Terminals 10 | . . . . 4 3 3 . Fabricators 3 | . . . . 1 1 1 . Repair Stations . | . . . . . . . . Recycling Units 2 | . 1 . . 1 . . . Scanalyzers . | . . . . . . . . Garrison Access 1 | . . . . . . 1 . Total Hacks 32 | . 4 . . 9 8 11 . Successful 8 | . 1 . . 5 1 1 . Failed 24 | . 3 . . 4 7 10 . Catastrophic 4 | . . . . 2 1 1 . Database Lockouts . | . . . . . . . . Manual 11 | . . . . 5 3 3 . Terminals 17 | . . . . 7 5 5 . Fabricators 8 | . . . . 1 3 4 . Repair Stations . | . . . . . . . . Recycling Units 5 | . 4 . . 1 . . . Scanalyzers . | . . . . . . . . Garrison Access 2 | . . . . . . 2 . Terminal Hacks 3 | . . . . 3 . . . Unreport Threat 1 | . . . . 1 . . . Locate Traps 1 | . . . . 1 . . . Investigation Status 1 | . . . . 1 . . . Fabricator Hacks 2 | . . . . 1 1 . . Build 2 | . . . . 1 1 . . Repair Station Hacks . | . . . . . . . . Recycling Unit Hacks 2 | . 1 . . 1 . . . Retrieve Components 2 | . 1 . . 1 . . . Scanalyzer . | . . . . . . . . Garrison Access Hacks 1 | . . . . . . 1 . Unlock Access 1 | . . . . . . 1 . Unauthorized Hacks . | . . . . . . . . Terminals . | . . . . . . . . Fabricators . | . . . . . . . . Repair Stations . | . . . . . . . . Recycling Units . | . . . . . . . . Scanalyzers . | . . . . . . . . Garrison Access . | . . . . . . . . Data Cores Recovered . | . . . . . . . . Used . | . . . . . . . . Hacking Detections 14 | . 1 . . 5 3 5 . Full Trace Events 2 | . . . . 1 . 1 . Feedback Events . | . . . . . . . . Feedback Blocked . | . . . . . . . . Robot Schematics Acquired . | . . . . . . . . Robots Built . | . . . . . . . . Authchips . | . . . . . . . . Time . | . . . . . . . . Total Robot Build Rating . | . . . . . . . . Part Schematics Acquired . | . . . . . . . . Parts Built 2 | . . . . 2 . . . Authchips . | . . . . . . . . Time 212 | . . . . 84 128 . . Total Part Build Rating 8 | . . . . 8 . . . Part Studies Acquired . | . . . . . . . . Parts Repaired . | . . . . . . . . Time . | . . . . . . . . Parts Recycled . | . . . . . . . . Recycled Matter . | . . . . . . . . Retrieved Matter . | . . . . . . . . Retrieved Components 1 | . . . . 1 . . . Parts Scanalyzed . | . . . . . . . . Part Schematics Acquired . | . . . . . . . . Parts Damaged . | . . . . . . . . Bothacking | -11 -10 -9 -8 -7 -6 -5 -5 ------------ Run | Yrd Mat Mat Mat Fac Fac Fac Gar Used RIF Installer . | . . . . . . . . Robots Hacked . | . . . . . . . . Non-combat . | . . . . . . . . Combat . | . . . . . . . . Robot Hacks Applied . | . . . . . . . . Relay Couplers Released . | . . . . . . . . Fabnet Peak Effective % . | . . . . . . . . Robots Rewired . | . . . . . . . . Allies Hacked . | . . . . . . . . Hacks Repelled . | . . . . . . . . Allies | -11 -10 -9 -8 -7 -6 -5 -5 -------- Run | Yrd Mat Mat Mat Fac Fac Fac Gar Total Allies . | . . . . . . . . Largest Group . | . . . . . . . . Highest-Rated Group . | . . . . . . . . Highest-Rated Ally . | . . . . . . . . Total Orders . | . . . . . . . . Ally Attacks . | . . . . . . . . Total Damage . | . . . . . . . . Kills . | . . . . . . . . Allies Corrupted . | . . . . . . . . Allies Melted . | . . . . . . . . Intel | -11 -10 -9 -8 -7 -6 -5 -5 ------- Run | Yrd Mat Mat Mat Fac Fac Fac Gar Active Infowar (turns) . | . . . . . . . . Robot Analysis Total . | . . . . . . . . Derelict Logs Recovered . | . . . . . . . . Drone Launches . | . . . . . . . . Drone Recoveries . | . . . . . . . . Exploration | -11 -10 -9 -8 -7 -6 -5 -5 ------------- Run | Yrd Mat Mat Mat Fac Fac Fac Gar Turns Passed 917 | 15 58 57 134 389 124 81 59 Spaces Moved 1715 | 30 115 110 267 742 239 131 81 Core 1715 | 30 115 110 267 742 239 131 81 Treads . | . . . . . . . . Legs . | . . . . . . . . Wheels . | . . . . . . . . Hover . | . . . . . . . . Flight . | . . . . . . . . Fastest Speed 50 | 50 50 50 50 50 50 50 50 Average Speed 50 | 50 50 50 50 50 50 50 50 Slowest Speed 50 | 50 50 50 50 50 50 50 50 Overloaded Moves . | . . . . . . . . Propulsion Burnouts . | . . . . . . . . Robots Hopped . | . . . . . . . . Potential Cave-ins . | . . . . . . . . Cave-ins Triggered . | . . . . . . . . Exploration Rate (%) 17 | 3 29 16 36 24 10 5 20 Regions Visited 7 Branch Regions . Pre-discovered Areas . | . . . . . . . . Known Exits Taken 1 | . . . . . . 1 . Unknown Exits Taken 6 | 1 1 1 1 1 1 . . Scrap Searched . | . . . . . . . . Spaces Dug . | . . . . . . . . Terrain Destroyed . | . . . . . . . . Melee . | . . . . . . . . Projectile . | . . . . . . . . AOE . | . . . . . . . . Terrain Rammed . | . . . . . . . . Walls Destroyed . | . . . . . . . . Machines Disabled . | . . . . . . . . Actions | -11 -10 -9 -8 -7 -6 -5 -5 --------- Run | Yrd Mat Mat Mat Fac Fac Fac Gar Total 1767 | 29 114 111 266 759 242 146 100 Wait 11 | . . . . 3 4 4 . Move 1709 | 29 114 109 266 741 238 131 81 Hop . | . . . . . . . . Pick Up . | . . . . . . . . Fast Attach . | . . . . . . . . Attach . | . . . . . . . . Detach . | . . . . . . . . Swap . | . . . . . . . . Drop . | . . . . . . . . Fire . | . . . . . . . . Melee . | . . . . . . . . Ram 24 | . . 2 . . . 11 11 Kick . | . . . . . . . . Crush . | . . . . . . . . Escape Stasis 23 | . . . . 15 . . 8 Rewire . | . . . . . . . . Trap . | . . . . . . . . Miscellaneous . | . . . . . . . . Route ------- -11/Scrapyard -10/Materials (discovered 2 exits: [*Mat] / [*Min]) -9/Materials -8/Materials -7/Factory -6/Factory -5/Factory -5/Garrison History --------- Turn | Location | Event 5 | -11/Scrapyard | Discovered new exit (range 15) 16 | -11/Scrapyard | Entered Materials 42 | -10/Materials | Discovered new exit (range 8) 66 | -10/Materials | Discovered new exit (range 16) 74 | -10/Materials | Entered another Materials area 74 | -9/Materials | Evolved 2 slots: Power x2 124 | -9/Materials | Core integrity fell below 50% 126 | -9/Materials | Discovered new exit (range 11) 131 | -9/Materials | Entered another Materials area 131 | -8/Materials | Evolved 2 slots: Power x2 217 | -8/Materials | Core integrity fell below 50% 257 | -8/Materials | Discovered new exit (range 13) 258 | -8/Materials | Core integrity fell below 20% 265 | -8/Materials | Entered Factory 265 | -7/Factory | Evolved 2 slots: Power x2 305 | -7/Factory | Build established: Mutant 471 | -7/Factory | Fabricated Imp. Titanium Leg? 637 | -7/Factory | Discovered new exit (range 13) 654 | -7/Factory | Entered another Factory area 654 | -6/Factory | Evolved 2 slots: Power x2 726 | -6/Factory | Spotted B-75 Beast 775 | -6/Factory | Discovered new exit (range 8) 778 | -6/Factory | Entered another Factory area 778 | -5/Factory | Evolved 2 slots: Power x2 859 | -5/Factory | Identified exit to Garrison 859 | -5/Factory | Entered Garrison 878 | -5/Garrison | Triggered checkpoint 893 | -5/Garrison | Core integrity fell below 50% 910 | -5/Garrison | Core integrity fell below 20% 918 | -5/Garrison | Destroyed by H-66 Slayer with Gauss Rifle Last Messages --------------- 00898_ Field strength at 14. 00899_ Field strength at 2. 00900_ Stasis field depleted. 00901_ Slammed into C-35 Carver. Garrison Door activated. 00905_ Slammed into C-35 Carver. 00905_ E-15 Imp destroyed. 00906_ KXNWJIKO 7V32JW 00906_ Slammed into C-35 Carver. 00909_ Penetrated by Slug. 00912_ Slammed into Y-64 Sentinel. 00912_ Slug penetrates Wall. 00913_ Slammed into Y-64 Sentinel. 00914_ Slug penetrates Wall. 00915_ Slammed into Y-64 Sentinel. 00915_ Penetrated by Slug. 00918_ Slammed into C-35 Carver. 00918_ Slug penetrates E-15 Imp. 00918_ E-15 Imp destroyed. 00918_ Penetrated by Slug. Map ----- +----------------------------------------------------+ | ?????????????????????????????????????????????????? | | ?????????????????????????????????????????????????? | | ?????????????????????????????????????????????????? | | ?????????????????????????????????????????????????? | | ?????????????????????????????????????????????????? | | ?????????????????????????????????????????????????? | | ?????????????????????????????????????????????????? | | ?????????????????????????????????????????????????? | | ?????????????????????????????????????????????????? | | ?????????????????????????????????????????????????? | | ???????????????????????????????#####?????????????? | | ???????????????????????????????# #?????????????? | | ???????????????????????######### ##### ?? | | ???????????????????????# ?? | | ???????????????????????# !?? | | ???????????????????????# ############## ?? | | ???????????????????????# #???????????????"" ""?? | | ???????????????????????# #??????????????????????? | | ???????????????????????# #??????????????????????? | | ???????????????????????# #??####????????????????? | | ???????????????????????# #??#""""???????????????? | | ???????????????????????# #??## ###????????????? | | ???????????????????????# +??+ #????????????? | | ???????????????????????# #??######%#????????????? | | ???????????????????????# #???????#%#????????????? | | ????????????############c@#???????#%#????????????? | | ????????????# =#???????#%###??????????? | | ????????????# *%## ######%%!#??????????? | | ????????????# ######### ## +% #??????????? | | ????????????# #???????#hc######### #??????????? | | ????????????# #???????# Y######### ###??????????? | | ????????????# #???????# %% #????????????? | | ????????????# #???????# ###########????????????? | | ??????# ???# #???????# #??????????????????????? | | ???#### ## ##??????# #??????????????????????? | | ####### #??????????????????????? | | #??????????????????????? | | #??????????????????????? | | ## ## # # #########??????????????????????? | | ??????# # #????????????????????????????????? | | ???? "????????????????????????????????? | | ?? "????????????????????????????????? | | ?? "????????????????????????????????? | | ?" "????????????????????????????????? | | ?? ## ## ^#????????????????????????????????? | | ?? ?# ?# #????????????????????????????????? | | ?????? ?? ????????????????????????????????? | | ????? ?? ????????????????????????????????? | | ?????? ?? #????????????????????????????????? | | ???????????## #?????????????????????????????????? | +----------------------------------------------------+ Best States ------------- Heat Dissipation 40 Energy Generation 5 Energy Capacity 100 Matter Stores 300 Matter Capacity 300 Sight Range 16 Terrain Scan Density 10 Evasion (%) 50 Item Schematics ----------------- None Robot Schematics ------------------ None Fabricated ------------ Imp. Titanium Leg | x2 | -7/Factory | Preloaded Repaired ---------- Nothing Studied --------- None Alien Tech Used ----------------- None Achievements -------------- Streaker Challenges ------------ None Game ------ Seed SpacefoldUltimateForcegen Manual? 0 Play Time 00:11:56 Cumulative 41.1 hours Start 2026.06.21 @ 08:30:45 End 2026.06.21 @ 08:42:30 Sessions 1 Manual Loads 0 Difficulty Rogue Special Mode None Game No. 102 Rogue 102 Adventurer 0 Explorer 0 Win Type - Total 3 Types 3/0/0/0/0/0/0/0/0/0 Lore% 41 Gallery% 35 Achievement% 36 Wizard Run 0 Options --------- Layout 1 ASCII 0 Keyboard 0 Movement Mouse Keybinds 0 Fullscreen 1 Font 16/SmallcapsGlow Map View 50x40 Zoom Use 0% Tactical HUD 1 Map Filters NONE Filters NONE Steam SD RUN: a11b045b-a738-41ed-ad8b-6b664fc8d2b9